bitfinex/quotes_ETHUSD_20241223
["timestamp","ask_amount","ask_price","bid_price","bid_amount"]
[1734977221109,0.55,3337.4,3336.7,2.99693]
[1734977221314,0.55,3337.4,3336.8,3.06270143]
[1734977221717,2.9959,3337.9,3336.8,3.06270143]
[1734977221718,0.8283,3337.9,3336.9,3.9062491]
[1734977222018,0.8283,3338.6,3337.7,2.99605]
[1734977222218,1.210633,3338.6,3338.1,2.99569]
[1734977222420,1.210633,3338.6,3337.4,0.0299601]
[1734977222421,0.8283,3338.6,3337.8,0.06531192]
[1734977222609,1.21962395,3339.1,3338.2,0.06508555]
[1734977222610,0.8146,3339.0,3338.2,0.06508555]
[1734977222785,1.21962395,3339.1,3338.6,2.99518]
[1734977222989,1.21962395,3339.1,3338.3,0.06483718]
[1734977223230,0.02971068,3339.0,3338.7,0.06461088]
[1734977223388,1.21962395,3339.1,3338.2,0.826]
[1734977223590,1.21962395,3339.1,3339.0,2.9949]
[1734977223991,3.95e-06,3339.1,3339.0,4.43248619]
[1734977224292,0.8013,3340.1,3339.0,4.43248619]
[1734977224293,0.8013,3340.5,3339.9,2.99405]
[1734977224532,0.8013,3340.5,3339.7,2.99424]
[1734977224831,0.8013,3340.5,3340.0,0.06341778]
[1734977224988,0.8013,3340.5,3339.7,2.99424]
[1734977225192,1.36890693,3340.5,3340.1,0.06336126]
[1734977225389,0.8013,3340.5,3339.9,2.99405]
[1734977225904,0.55,3340.4,3340.0,0.06341778]
[1734977226203,0.55,3340.4,3340.0,3.05739778]
[1734977226934,0.55,3340.4,3340.0,0.06341778]
[1734977227170,0.83101068,3340.5,3339.0,3.7746]
[1734977227171,0.55,3340.2,3339.0,3.7746]
[1734977227344,3.80307,3339.9,3338.8,2.99503]
[1734977227645,3.57395068,3339.8,3338.6,2.99522]
[1734977227805,0.55,3339.4,3338.4,2.99543]
[1734977228003,3.0,3339.6,3338.6,2.99523]
[1734977228304,0.02971068,3339.5,3338.2,0.8095]
[1734977228629,0.02971068,3339.5,3337.7,8.95]
[1734977228630,0.55,3338.9,3337.9,2.99581]
[1734977228832,0.55,3338.9,3337.7,0.8079]
[1734977229034,0.57971068,3339.1,3337.7,3.80391]
[1734977229190,0.55,3339.2,3337.7,0.8079]
[1734977229532,0.02971068,3339.1,3337.7,0.8079]
[1734977229749,0.02971068,3339.1,3337.7,3.80392]
[1734977229890,0.55,3338.8,3337.9,2.99587]
[1734977230085,0.02971068,3338.7,3337.9,2.99587]
[1734977230291,0.57971068,3339.0,3337.9,2.99587]
[1734977230520,0.55,3339.2,3337.7,0.8079]
[1734977230701,3.55,3339.2,3337.8,3.381148]
[1734977230902,6.54473,3339.2,3337.8,3.381148]
[1734977231137,0.02971068,3339.1,3338.1,2.99563]
[1734977231633,6.54473,3339.2,3337.8,0.385168]
[1734977231634,0.55,3339.2,3337.8,0.385168]
[1734977231993,0.798,3340.2,3338.2,2.99562]
[1734977232217,3.02369068,3340.1,3338.5,0.7794]
[1734977232489,0.82771068,3340.2,3338.7,2.99517]
[1734977232719,0.82771068,3340.2,3339.0,2.99482]
[1734977233107,0.82771068,3340.2,3338.5,0.7794]
[1734977233310,3.0,3339.9,3338.5,0.7794]
[1734977233512,3.3,3339.8,3338.6,0.86175]
[1734977234106,0.55,3339.7,3338.7,2.99516]
[1734977234299,0.55,3339.7,3338.6,0.86175]
[1734977234634,0.798,3340.2,3338.6,0.86175]
[1734977234856,0.798,3340.2,3339.7,2.99427]
[1734977235223,3.04377999,3341.3,3339.8,0.299427]
[1734977235224,2.99296,3341.2,3339.8,0.299427]
[1734977235429,0.02971068,3341.1,3339.8,0.299427]
[1734977235643,3.02275068,3341.1,3340.0,2.99397]
[1734977236044,0.86171068,3341.3,3340.1,0.06110441]
[1734977236227,3.04377999,3342.1,3340.1,0.06110441]
[1734977236228,2.99338,3340.7,3340.1,0.06110441]
[1734977236561,0.81321068,3340.6,3340.2,0.0608617]
[1734977236767,0.81321068,3340.6,3339.6,2.99436]
[1734977237261,0.7835,3340.6,3339.7,0.06114433]
[1734977237430,0.7827,3341.2,3339.7,3.09108064]
[1734977237761,0.7827,3341.2,3340.0,6.03770999]
[1734977238059,0.7827,3341.2,3340.4,2.99363]
[1734977238231,0.7827,3341.2,3340.6,2.9934]
[1734977238447,0.7827,3341.2,3340.2,3.75828]
[1734977238448,3.77493,3342.0,3340.8,2.99321]
[1734977238634,2.99258,3341.6,3340.7,0.06020689]
[1734977238960,2.9922,3342.1,3340.8,0.05984731]
[1734977238961,0.7827,3341.2,3340.8,0.05984731]
[1734977239130,1.16323007,3341.2,3340.2,0.7645]
[1734977239335,1.16323007,3341.2,3340.9,0.05979081]
[1734977239658,0.7615,3341.9,3340.9,2.99316]
[1734977239875,0.7615,3341.9,3341.0,0.05973432]
[1734977240169,0.02971068,3342.8,3341.7,2.9924]
[1734977240554,0.8145,3342.7,3341.8,0.05913897]
[1734977241163,0.8145,3343.5,3342.5,2.99175]
[1734977241367,0.50171553,3343.4,3342.5,2.99171]
[1734977241662,0.8145,3343.5,3342.6,0.05854917]
[1734977242064,0.8145,3343.5,3342.5,2.99174]
[1734977242234,0.8145,3343.5,3342.7,0.05808889]
[1734977242569,0.8145,3343.5,3342.4,2.99183]
[1734977242570,0.55,3343.4,3342.4,2.99183]
[1734977242864,0.55,3343.4,3342.8,0.05803246]
[1734977243169,0.8145,3343.5,3341.9,0.81891212]
[1734977243369,0.8076,3344.0,3343.2,2.99111]
[1734977243572,0.8076,3344.0,3343.3,2.991]
[1734977243737,0.8076,3344.0,3343.3,0.05775035]
[1734977243943,0.8076,3344.0,3343.2,2.99113]
[1734977244137,0.8076,3344.0,3343.4,0.05769394]
[1734977244466,0.8076,3344.0,3343.0,0.7802]
[1734977244670,0.34651682,3344.7,3343.5,0.05763753]
[1734977244671,0.8076,3344.7,3343.5,0.05763753]
[1734977244886,0.8076,3344.7,3343.5,3.02076243]
[1734977245042,0.8076,3344.7,3344.0,2.99036]
[1734977245240,0.7636,3345.2,3344.0,2.99036]
[1734977245443,0.7636,3345.2,3344.1,0.05484011]
[1734977245662,0.375289,3345.1,3344.1,0.05484011]
[1734977246023,0.02971068,3345.0,3343.7,8.95]
[1734977246162,3.7636,3344.9,3344.2,0.05448127]
[1734977246363,0.02971068,3344.8,3343.1,0.8313]
[1734977246579,0.55,3344.5,3344.3,0.05442489]
[1734977246783,0.02971068,3344.4,3343.1,0.8313]
[1734977246986,2.99034,3344.1,3342.8,3.0]
[1734977247135,2.99034,3344.1,3342.7,12.70696]
[1734977247136,2.9907,3343.7,3342.7,0.7654]
[1734977247478,0.02971068,3343.6,3342.5,2.99175]
[1734977247675,2.9907,3343.7,3342.5,2.99175]
[1734977248174,0.55,3343.8,3342.7,2.99158]
[1734977248548,0.376174,3344.0,3342.4,0.02991064]
[1734977248746,0.7714,3344.3,3342.5,3.96625106]
[1734977248747,3.55,3344.2,3342.5,3.96625106]
[1734977248949,3.55,3344.2,3342.9,2.99141]
[1734977249174,3.55,3344.2,3342.5,3.96625106]
[1734977249175,0.7714,3344.3,3342.7,3.0]
[1734977249385,0.7714,3344.3,3343.0,3.0]
[1734977250166,0.7714,3344.3,3343.4,2.99095]
[1734977250340,0.7714,3344.3,3343.2,2.99114]
[1734977250540,2.99025,3344.2,3343.0,3.0]
[1734977250791,0.40587568,3344.1,3343.3,0.05498885]
[1734977251002,0.40587568,3344.1,3343.0,3.0]
[1734977251297,0.40587568,3344.1,3343.4,0.05493244]
[1734977251298,0.55,3344.0,3343.4,0.05493244]
[1734977251596,0.7873,3343.7,3343.5,0.05487603]
[1734977251740,0.57971068,3343.6,3342.1,3.5315639]
[1734977252315,0.7873,3343.7,3342.1,0.7645]
[1734977252501,0.7873,3343.7,3342.6,2.99163]
[1734977252939,0.377793,3343.6,3342.2,2.99204]
[1734977253146,0.377793,3343.6,3342.5,2.99172]
[1734977253447,2.99098,3343.4,3342.3,2.99193]
[1734977253860,0.02971068,3343.3,3342.1,9.7145]
[1734977254047,0.7642,3343.1,3342.0,2.99218]
[1734977254251,0.55,3343.0,3342.0,3.291398]
[1734977254671,0.7642,3343.1,3342.1,0.02991739]
[1734977254969,0.7642,3343.1,3342.0,0.299218]
[1734977255175,1.3336,3343.7,3342.6,2.99166]
[1734977255340,0.732417,3343.6,3342.7,2.99157]
[1734977255556,1.3336,3343.7,3342.7,2.99157]
[1734977255758,1.3336,3343.7,3342.4,0.7565]
[1734977255961,0.02971068,3343.6,3342.1,8.95]
[1734977256161,0.02971068,3343.6,3341.9,0.7565]
[1734977256162,0.55,3343.3,3341.9,0.7565]
[1734977256485,2.99135,3343.0,3341.9,3.7565]
[1734977256689,3.37816675,3343.0,3341.9,3.7565]
[1734977256844,3.37816675,3343.0,3342.1,2.9921]
[1734977256845,0.35710607,3343.0,3342.1,2.9921]
[1734977257042,0.55,3343.1,3342.1,2.9921]
[1734977257283,0.55,3343.1,3341.9,0.7565]
[1734977257284,3.54126,3343.1,3341.9,3.74879]
[1734977257490,3.54126,3343.1,3342.0,3.0]
[1734977257491,2.79691068,3343.1,3342.0,3.0]
[1734977258157,0.8297,3343.4,3341.6,5.99256]
[1734977258363,0.7829,3342.8,3342.1,2.99209]
[1734977258794,0.7829,3342.8,3342.2,2.99196]
[1734977258993,2.99055,3343.9,3341.6,1.32856639]
[1734977258994,0.7829,3343.2,3342.3,0.8041]
[1734977259189,0.7829,3343.2,3342.5,2.99172]
[1734977259361,0.7829,3343.2,3342.5,3.670501]
[1734977259693,0.7829,3343.2,3342.3,3.0]
[1734977260891,3.77406,3343.2,3342.3,3.0]
[1734977261290,0.7829,3343.2,3341.9,0.812]
[1734977261489,2.99124,3343.1,3342.0,2.99221]
[1734977261662,0.7829,3343.2,3342.0,2.99222]
[1734977261863,0.7829,3343.2,3342.1,0.380422]
[1734977262086,0.7829,3343.2,3341.9,0.812]
[1734977262896,0.7829,3343.2,3342.2,2.99196]
[1734977263103,0.7829,3343.2,3342.3,0.02991649]
[1734977263282,0.7829,3343.2,3342.2,2.99196]
[1734977263864,3.77406,3343.2,3342.0,2.99219]
[1734977264190,3.77406,3343.2,3342.1,3.971773]
[1734977264798,3.77406,3343.2,3342.2,2.99203]
[1734977265233,0.7829,3343.2,3342.1,0.979653]
[1734977265437,3.77406,3343.2,3342.1,2.99209]
[1734977265935,3.77406,3343.2,3342.2,0.05429521]
[1734977266635,3.77406,3343.2,3342.3,2.99195]
[1734977266636,0.7829,3343.2,3342.3,2.99195]
[1734977266840,0.7829,3343.2,3342.5,2.99171]
[1734977267134,0.7829,3343.2,3342.6,0.0541119]
[1734977267633,3.77408,3343.2,3342.7,0.05405547]
[1734977267835,3.77408,3343.2,3342.0,2.9922]
[1734977267997,0.7829,3343.2,3342.8,0.05399904]
[1734977268197,3.0,3343.5,3341.4,2.99273]
[1734977268198,2.99176,3342.6,3341.4,2.99273]
[1734977268391,0.8218,3342.4,3341.3,2.99284]
[1734977268588,0.8218,3342.4,3341.3,3.04309979]
[1734977268791,0.8218,3342.4,3341.9,2.9923]
[1734977269441,0.8218,3342.4,3341.6,2.99254]
[1734977271547,0.8218,3342.4,3341.7,2.99241]
[1734977271856,0.8218,3342.4,3342.0,2.99217]
[1734977272020,0.8218,3342.4,3341.7,0.599241]
[1734977272224,2.99111,3343.3,3342.2,2.99201]
[1734977272750,0.7744,3342.8,3341.4,2.99274]
[1734977272923,2.99169,3342.6,3341.5,2.99259]
[1734977273251,0.7744,3342.7,3341.8,2.99234]
[1734977273448,1.3244,3342.6,3341.3,2.99284]
[1734977273618,2.99203,3342.3,3341.3,2.99284]
[1734977273818,0.43244,3342.5,3341.0,2.99303]
[1734977273819,0.7744,3341.9,3341.0,2.99303]
[1734977274351,0.7744,3341.9,3340.8,3.1289526]
[1734977274518,2.99258,3341.6,3340.8,3.1289526]
[1734977274724,0.7744,3341.5,3340.8,3.1289526]
[1734977275240,3.76709,3341.5,3340.8,3.1289526]
[1734977275548,2.99276,3341.4,3340.9,0.05550184]
[1734977275703,2.99285,3341.3,3340.9,0.05550184]
[1734977276225,2.99276,3341.4,3340.8,3.1289526]
[1734977276543,0.55,3341.4,3341.0,0.05563653]
[1734977276744,0.7744,3341.1,3340.9,0.05569302]
[1734977276949,0.7744,3341.1,3340.8,3.1289526]
[1734977277647,0.7744,3341.1,3340.9,0.05601174]
[1734977278350,0.7724,3341.8,3341.1,2.99297]
[1734977278553,0.7724,3342.6,3340.9,3.04919174]
[1734977278721,1.2117853,3342.5,3341.2,0.05599105]
[1734977278903,1.2117853,3342.5,3341.7,2.99247]
[1734977279434,0.7724,3342.4,3341.8,0.05556719]
[1734977279619,0.7724,3342.4,3341.2,2.99284]
[1734977279807,2.99198,3342.3,3341.9,0.05551073]
[1734977280029,3.67476799,3342.3,3341.2,2.99289]
[1734977280262,2.99205,3342.2,3342.0,0.05545427]
[1734977280463,1.3224,3342.1,3340.9,2.99319]
[1734977280662,2.99223,3342.0,3341.0,2.99308]
[1734977280964,0.769,3343.3,3341.6,2.99249]
[1734977281176,0.769,3342.6,3341.6,2.99249]
[1734977281475,0.769,3342.6,3341.7,0.05575626]
[1734977281635,0.37606,3342.5,3341.7,0.05575626]
[1734977281962,2.99177,3342.5,3341.8,0.05569979]
[1734977282121,2.99177,3342.5,3341.4,2.99273]
[1734977282541,2.99177,3342.5,3341.5,0.0558692]
[1734977282842,2.99177,3342.5,3341.5,3.0485192]
[1734977283223,0.7966,3342.4,3341.5,0.0558692]
[1734977283419,0.7966,3342.4,3340.3,2.9937]
[1734977283420,0.7966,3342.2,3340.8,6.1222026]
[1734977283736,0.7966,3342.2,3340.9,8.95]
[1734977283939,0.7966,3342.2,3341.4,2.99267]
[1734977284176,0.7966,3342.2,3341.5,2.99264]
[1734977284474,0.7966,3342.2,3341.7,2.9924]
[1734977284970,0.7966,3342.2,3341.8,0.05567324]
[1734977285350,0.7966,3342.2,3341.9,0.05559022]
[1734977285773,1.17626,3342.2,3341.1,2.99296]
[1734977286279,1.17626,3342.2,3341.2,0.05598552]
[1734977286468,2.99222,3342.0,3341.2,0.05598552]
[1734977286664,4.16833,3342.2,3341.2,0.05598552]
[1734977286983,4.16833,3342.2,3340.8,3.1289526]
[1734977286984,0.7966,3342.2,3340.9,3.02992719]
[1734977287196,0.7966,3342.2,3341.8,2.99232]
[1734977287499,0.7752,3342.6,3341.5,0.7989]
[1734977287685,1.2117853,3342.7,3342.6,2.99168]
[1734977288038,1.2117853,3342.7,3342.6,3.04697069]
[1734977288542,1.2117853,3342.7,3342.6,0.05529069]
[1734977288769,0.7752,3342.9,3342.6,0.05529069]
[1734977289152,0.7752,3342.9,3342.1,2.99204]
[1734977289372,0.7752,3342.9,3342.7,0.0549687]
[1734977289553,0.7752,3342.9,3341.8,2.99231]
[1734977289773,0.7752,3342.9,3342.5,2.99175]
[1734977289970,0.7752,3342.9,3341.9,0.05542028]
[1734977290285,0.7752,3342.9,3342.2,2.99203]
[1734977290590,7.2025053,3343.7,3342.3,0.05511481]
[1734977290737,0.7749,3343.6,3342.7,2.99158]
[1734977290938,0.7749,3343.6,3342.8,0.05476891]
[1734977291686,3.0,3343.5,3342.8,0.05476891]
[1734977291890,3.0,3343.5,3342.6,2.99166]
[1734977292085,5.99088,3343.5,3342.4,2.99183]
[1734977292288,3.0,3343.3,3342.7,0.05482534]
[1734977292491,3.0,3343.3,3342.5,0.05493821]
[1734977292688,3.0,3343.3,3342.4,2.99183]
[1734977292863,3.0,3343.3,3342.6,0.05488178]
[1734977293066,0.676589,3343.3,3342.4,2.99181]
[1734977293777,0.676589,3343.3,3342.5,0.05424268]
[1734977295020,3.676589,3343.3,3342.5,0.05424268]
[1734977295830,0.7906,3343.0,3342.5,0.05424268]
[1734977295967,0.7906,3343.0,3342.1,2.99209]
[1734977296165,4.2277679,3343.0,3342.2,0.05447571]
[1734977296623,4.2277679,3343.0,3341.9,2.99222]
[1734977296788,3.0,3342.9,3342.3,0.05441926]
[1734977297123,4.2277679,3343.0,3341.4,11.94274]
[1734977297124,0.8255,3342.8,3341.4,11.94274]
[1734977297333,0.8255,3342.8,3342.4,0.05436282]
[1734977297621,0.8255,3342.8,3342.5,0.05437008]
[1734977297987,1.2117853,3343.4,3342.4,2.99185]
[1734977297988,0.8255,3343.3,3342.4,2.99185]
[1734977298166,0.8255,3343.3,3342.0,2.99215]
[1734977298167,1.2117853,3343.1,3342.6,0.05431365]
[1734977298373,1.2117853,3343.1,3342.6,3.04598365]
[1734977298570,1.2117853,3343.1,3342.8,2.99147]
[1734977298768,1.2117853,3343.1,3342.6,3.04597365]
[1734977298976,1.2117853,3343.1,3342.2,0.7564]
[1734977299290,1.2117853,3343.1,3342.7,0.05429968]
[1734977299491,1.2117853,3343.1,3342.1,2.99211]
[1734977299492,0.38889999,3343.1,3342.1,2.99211]
[1734977299704,0.8255,3342.9,3341.9,2.99228]
[1734977299886,0.8255,3342.9,3342.2,0.05458189]
[1734977300090,0.8255,3343.4,3341.8,12.69879]
[1734977300291,3.8255,3343.4,3342.5,2.99169]
[1734977300506,3.8255,3343.4,3341.7,3.0]
[1734977300507,2.99142,3342.9,3341.7,3.0]
[1734977300828,1.2117853,3343.4,3341.7,3.0]
[1734977300829,0.7575,3342.8,3341.7,2.9924]
[1734977301048,3.7575,3342.8,3341.9,2.99229]
[1734977301177,0.7575,3342.8,3342.1,2.99208]
[1734977301390,0.7575,3342.8,3342.2,0.05449695]
[1734977301700,0.7575,3343.3,3342.2,0.8214]
[1734977301886,0.7575,3343.3,3343.0,2.99123]
[1734977302086,1.2117853,3343.4,3343.0,2.99123]
[1734977302283,1.2117853,3343.1,3343.0,2.99123]
[1734977303906,0.7575,3343.7,3343.2,2.99111]
[1734977304138,0.7575,3343.7,3342.5,2.99177]
[1734977304139,1.2117853,3343.9,3342.9,8.95]
[1734977304296,1.2117853,3343.9,3343.8,2.9906]
[1734977304490,1.2117853,3343.9,3343.5,2.99079]
[1734977304804,4.48764986,3344.3,3343.1,0.815]
[1734977305135,2.65032175,3344.3,3343.4,2.99091]
[1734977305330,2.0163853,3344.3,3343.7,2.99069]
[1734977305831,2.0163853,3344.3,3343.1,1.79988453]
[1734977305832,2.0163853,3344.3,3343.5,2.99084]
[1734977306190,2.0163853,3344.3,3343.1,1.79988453]
[1734977306403,0.8046,3344.3,3343.7,2.99068]
[1734977306704,0.8046,3344.3,3343.5,2.99085]
[1734977307101,0.8046,3344.3,3343.5,0.299085]
[1734977307338,0.8046,3344.3,3343.7,2.99069]
[1734977307539,4.2015253,3344.8,3344.0,2.99037]
[1734977307540,0.7988,3344.7,3344.0,2.99037]
[1734977307745,0.7988,3344.7,3343.5,0.299085]
[1734977307955,0.7988,3344.7,3343.8,2.99058]
[1734977308130,0.7988,3344.7,3343.5,0.299085]
[1734977308330,0.7988,3344.7,3343.6,0.9249085]
[1734977308516,0.7988,3344.7,3343.7,0.8064]
[1734977308872,0.7988,3344.7,3344.0,2.9904]
[1734977309079,0.7988,3344.7,3343.7,0.8064]
[1734977309266,0.7988,3344.7,3344.1,2.99034]
[1734977309462,0.7988,3344.7,3343.9,2.99048]
[1734977309775,0.7988,3344.7,3344.0,0.379688]
[1734977310332,0.7988,3344.7,3344.0,2.99038]
[1734977310635,0.7947,3345.1,3344.1,0.05252814]
[1734977310830,3.78415,3345.1,3344.1,0.05252814]
[1734977311037,2.98953,3345.0,3343.7,3.8064]
[1734977311236,0.7765,3344.4,3343.8,0.05269732]
[1734977311486,0.7765,3344.4,3343.8,0.20968908]
[1734977311666,2.98944,3345.2,3343.9,0.05264092]
[1734977311975,2.98975,3344.8,3343.8,0.20968908]
[1734977312274,2.98981,3344.7,3343.8,0.20968908]
[1734977312478,0.7765,3344.6,3343.9,0.05264092]
[1734977312803,2.98999,3344.5,3343.9,0.05264092]
[1734977312935,0.376649,3344.5,3343.9,0.05264092]
[1734977313337,0.376649,3344.5,3343.3,5.99105]
[1734977313338,0.376649,3344.5,3343.3,3.0]
[1734977313589,2.99041,3344.1,3344.0,0.05258453]
[1734977313731,0.7765,3344.6,3344.0,0.05258453]
[1734977313936,0.7765,3344.6,3343.2,11.99239534]
[1734977314293,2.99014,3344.4,3343.4,2.99096]
[1734977314437,2.99014,3344.4,3343.5,0.05286652]
[1734977314642,2.99014,3344.4,3343.6,0.30438265]
[1734977314935,2.99017,3344.3,3343.7,0.05275371]
[1734977315377,2.99017,3344.3,3343.3,2.99105]
[1734977315554,2.98999,3344.5,3343.8,0.05234712]
[1734977315758,2.99008,3344.4,3343.4,2.99096]
[1734977315956,2.99008,3344.4,3343.9,0.05229072]
[1734977316170,2.99008,3344.4,3343.4,2.99096]
[1734977316395,2.99008,3344.4,3344.0,0.05223433]
[1734977316590,0.7765,3344.6,3344.0,0.05223433]
[1734977316748,3.7664,3344.6,3343.6,2.99078]
[1734977316952,3.7664,3344.6,3343.5,0.60333553]
[1734977316953,0.7765,3344.6,3343.5,0.60333553]
[1734977317291,0.7765,3344.6,3343.7,0.05240351]
[1734977317497,0.7659,3344.2,3343.7,0.05240351]
[1734977317972,0.7659,3344.2,3343.1,0.8202]
[1734977318301,0.7659,3344.2,3343.2,0.05289244]
[1734977318458,0.7659,3344.7,3343.2,0.05289244]
[1734977318793,2.98989,3344.6,3343.2,0.73932168]
[1734977319008,2.99033,3344.2,3343.2,0.73932168]
[1734977319850,2.99052,3343.9,3343.2,0.73932168]
[1734977320055,3.75642,3343.9,3343.2,0.73932168]
[1734977320995,2.99063,3343.8,3343.2,0.73932168]
[1734977321296,2.99063,3343.8,3343.2,0.05289244]
[1734977322316,0.7659,3343.9,3343.2,0.05289244]
[1734977322624,2.99071,3343.7,3343.2,0.05289244]
[1734977322770,2.99071,3343.7,3342.7,6.7666]
[1734977322972,3.75645,3343.9,3343.3,0.05283603]
[1734977323198,3.75645,3343.9,3342.9,2.9914]
[1734977323404,3.75645,3343.9,3343.4,0.05277962]
[1734977323576,3.75645,3343.9,3343.0,0.67665]
[1734977323773,3.75645,3343.9,3343.5,0.05272321]
[1734977324099,3.75645,3343.9,3343.6,0.05266681]
[1734977324304,3.75645,3343.9,3343.0,0.67665]
[1734977324500,3.75645,3343.9,3343.1,0.05294886]
[1734977324842,2.99063,3343.8,3343.1,0.05294886]
[1734977325377,2.99046,3344.0,3343.1,0.05294886]
[1734977325579,0.8006,3344.2,3343.1,0.05294886]
[1734977325883,2.99054,3343.9,3342.9,2.99137]
[1734977326079,0.379072,3344.1,3342.7,0.7751]
[1734977326080,0.8006,3344.2,3343.0,0.05300528]
[1734977326288,2.99035,3344.1,3343.0,2.99125]
[1734977326589,0.8006,3344.2,3343.1,0.05323537]
[1734977326791,2.99079,3343.6,3343.1,0.05323537]
[1734977326995,2.99114,3343.2,3343.1,0.05323537]
[1734977327306,0.8006,3343.5,3342.3,0.8127]
[1734977327307,2.99111,3343.3,3342.3,0.8127]
[1734977327508,2.99171,3342.6,3342.4,0.05363039]
[1734977327729,3.79211,3342.8,3341.8,0.8127]
[1734977327929,0.8006,3342.8,3341.8,0.8127]
[1734977328132,2.99169,3342.6,3341.9,0.05394979]
[1734977328338,1.17979,3342.8,3341.9,0.05394979]
[1734977328639,2.99186,3342.4,3341.9,0.05394979]
[1734977329129,1.17979,3342.8,3341.9,0.05394979]
[1734977329130,2.99168,3342.6,3341.9,0.05394979]
[1734977329428,2.99182,3342.5,3341.9,0.05394979]
[1734977329739,2.99203,3342.3,3341.9,0.05394979]
[1734977330036,2.99179,3342.5,3341.9,0.05394979]
[1734977330210,1.17979,3342.8,3341.9,0.05394979]
[1734977330400,0.417118,3342.7,3341.9,0.05394979]
[1734977330642,2.99222,3342.0,3341.9,0.05394979]
[1734977330936,0.8151,3342.5,3341.4,0.8049]
[1734977331141,3.40720855,3343.3,3341.7,2.99244]
[1734977331142,2.99153,3342.8,3341.7,2.99244]
[1734977331634,0.8151,3343.1,3341.8,0.838361]
[1734977331822,2.9918,3342.5,3341.8,0.838361]
[1734977332019,0.8064,3342.3,3341.8,0.054261]
[1734977332198,2.99226,3342.0,3341.8,0.054261]
[1734977332538,2.99205,3342.2,3341.4,0.7807]
[1734977332897,2.99205,3342.2,3341.5,0.05443041]
[1734977333117,2.99205,3342.2,3341.5,0.43723645]
[1734977333315,0.8064,3342.3,3341.5,0.43723645]
[1734977333518,2.99189,3342.4,3341.5,0.43723645]
[1734977333729,2.99195,3342.3,3341.5,0.43723645]
[1734977334142,2.9918,3342.5,3341.5,0.43723645]
[1734977334311,2.99191,3342.4,3341.5,0.43723645]
[1734977334499,0.55,3342.7,3341.5,0.43723645]
[1734977334500,2.99168,3342.6,3341.5,0.43723645]
[1734977334699,2.99192,3342.4,3341.5,0.43723645]
[1734977334946,0.8064,3342.8,3341.5,0.43723645]
[1734977335103,1.2117853,3342.9,3341.6,0.7969]
[1734977335289,1.2117853,3342.9,3341.9,2.99226]
[1734977335489,1.2117853,3342.9,3342.1,0.7969]
[1734977335683,1.2117853,3342.9,3342.2,0.05446523]
[1734977336183,2.99183,3342.5,3342.2,0.05446523]
[1734977336382,1.2117853,3342.9,3342.2,0.05446523]
[1734977336600,1.2117853,3342.9,3341.8,0.7969]
[1734977336850,2.99163,3342.7,3341.8,0.7969]
[1734977337152,2.99163,3342.7,3341.9,0.05501671]
[1734977337938,2.99143,3342.9,3341.9,0.05501671]
[1734977338135,3.80502,3343.2,3341.9,0.05501671]
[1734977338447,2.9916,3342.7,3341.9,0.05501671]
[1734977338650,2.99144,3342.9,3342.0,0.38443667]
[1734977338812,2.99144,3342.9,3342.1,0.05493034]
[1734977339455,0.8138,3343.2,3342.1,0.05493034]
[1734977339621,2.99133,3343.0,3342.2,0.7581]
[1734977339802,2.99133,3343.0,3342.3,0.05481213]
[1734977340345,2.99141,3342.9,3342.3,0.05481213]
[1734977341463,2.99155,3342.8,3342.3,0.05481213]
[1734977341749,2.99186,3342.4,3342.3,0.05481213]
[1734977342108,2.99186,3342.4,3341.8,0.7663]
[1734977342307,2.99171,3342.6,3341.9,0.0549583]
[1734977342539,0.299155,3342.8,3341.9,0.0549583]
[1734977342847,2.99136,3343.0,3341.9,3.0471783]
[1734977343420,3.805,3343.2,3341.9,0.0549583]
[1734977343621,2.99151,3342.8,3341.9,0.0549583]
[1734977344202,1.2117853,3343.6,3342.3,0.8083]
[1734977344407,1.2117853,3343.6,3342.5,0.8083]
[1734977344722,1.2117853,3343.6,3342.7,2.99155]
[1734977345157,1.2117853,3343.6,3342.8,0.05450871]
[1734977345336,1.2117853,3343.6,3343.0,2.9913]
[1734977345652,5.46170456,3344.0,3343.0,2.9913]
[1734977345653,2.99044,3344.0,3343.0,2.9913]
[1734977345853,1.2117853,3344.1,3343.1,0.05433943]
[1734977346061,1.2117853,3344.1,3342.5,0.8083]
[1734977346062,2.99141,3342.9,3342.5,0.8083]
[1734977346204,2.99141,3342.9,3341.4,8.95]
[1734977346205,2.99141,3342.9,3342.1,0.8083]
[1734977346406,0.70596764,3344.0,3342.7,0.8083]
[1734977346612,0.70596764,3344.0,3342.8,0.05202857]
[1734977346613,0.38166999,3344.0,3342.8,0.05202857]
[1734977346811,2.99027,3344.2,3343.3,0.8083]
[1734977347057,2.99027,3344.2,3343.4,0.05158401]
[1734977347564,3.0,3344.1,3343.4,0.05158401]
[1734977348159,2.99027,3344.2,3343.4,0.05158401]
[1734977349028,2.99016,3344.3,3343.4,0.05158401]
[1734977349331,1.9649853,3344.6,3343.4,0.05158401]
[1734977349537,1.9649853,3344.6,3343.6,3.04239534]
[1734977349538,1.2117853,3344.6,3343.6,3.04239534]
[1734977349849,1.2117853,3344.6,3343.7,0.85957165]
[1734977350012,1.2117853,3344.6,3344.3,0.7926]
[1734977350360,1.2117853,3344.6,3344.4,0.05085043]
[1734977350934,4.2011653,3345.2,3344.4,0.05085043]
[1734977351431,1.2117853,3345.2,3344.4,0.05085043]
[1734977351836,0.8279,3345.3,3344.0,0.8217]
[1734977352357,2.98945,3345.1,3344.1,0.05055321]
[1734977352529,2.98945,3345.1,3344.2,0.38626032]
[1734977352750,2.9896,3345.0,3344.2,0.38626032]
[1734977352947,2.9896,3345.0,3344.3,0.05042455]
[1734977353151,0.8279,3345.3,3344.3,0.05042455]
[1734977353351,2.98966,3344.9,3344.0,0.8217]
[1734977353523,0.1725343,3345.7,3344.5,0.7526]
[1734977353978,0.1725343,3345.7,3344.7,2.98978]